[Event "*** SCC Grand Prix: Titled Tuesday Blitz"]
[Site "Chess.com"]
[Date "2020.10.13"]
[Round "6"]
[White "Fh2411"]
[Black "GoltsevDmitry2000"]
[Result "1-0"]
[WhiteElo "2527"]
[BlackElo "2661"]
[TimeControl "180+1"]
[EndTime "11:08:41 PDT"]
[Termination "Fh2411 won by checkmate"]

1. d4 {[%clk 0:03:00.9]} 1... Nf6 {[%clk 0:02:55.7]} 2. Nf3 {[%clk 0:03:01.2]}
2... e6 {[%clk 0:02:54.9]} 3. Bf4 {[%clk 0:03:01.3]} 3... Bb4+ {[%clk
0:02:54.3]} 4. c3 {[%clk 0:03:00.8]} 4... Ba5 {[%clk 0:02:54.6]} 5. Nbd2 {[%clk
0:03:00.1]} 5... O-O {[%clk 0:02:54.2]} 6. e3 {[%clk 0:02:58.3]} 6... c6 {[%clk
0:02:53.6]} 7. Bd3 {[%clk 0:02:58]} 7... Bc7 {[%clk 0:02:53.9]} 8. Bg3 {[%clk
0:02:55.2]} 8... d5 {[%clk 0:02:53]} 9. Ne5 {[%clk 0:02:54.6]} 9... Nbd7 {[%clk
0:02:52.1]} 10. f4 {[%clk 0:02:54.4]} 10... Ne8 {[%clk 0:02:49.4]} 11. Qh5
{[%clk 0:02:46.9]} 11... f5 {[%clk 0:02:47.4]} 12. Bh4 {[%clk 0:02:39.6]} 12...
Nef6 {[%clk 0:02:44.3]} 13. Bxf6 {[%clk 0:02:39.4]} 13... Nxf6 {[%clk
0:02:43.6]} 14. Qh3 {[%clk 0:02:38.7]} 14... Bxe5 {[%clk 0:02:40.7]} 15. fxe5
{[%clk 0:02:35]} 15... Ng4 {[%clk 0:02:39.8]} 16. O-O {[%clk 0:02:29.1]} 16...
Qg5 {[%clk 0:02:39.1]} 17. Rae1 {[%clk 0:02:19.9]} 17... Bd7 {[%clk 0:02:35.6]}
18. Rf4 {[%clk 0:02:02.5]} 18... b6 {[%clk 0:02:27.3]} 19. Nf3 {[%clk
0:01:50.2]} 19... Qh6 {[%clk 0:02:13]} 20. Qxh6 {[%clk 0:01:36.1]} 20... Nxh6
{[%clk 0:02:13.8]} 21. h4 {[%clk 0:01:35.2]} 21... Nf7 {[%clk 0:02:12.5]} 22. g4
{[%clk 0:01:28]} 22... g6 {[%clk 0:02:10.1]} 23. Rf1 {[%clk 0:01:17.4]} 23... h6
{[%clk 0:02:08.7]} 24. gxf5 {[%clk 0:01:07.8]} 24... gxf5 {[%clk 0:02:04.2]} 25.
Kh2 {[%clk 0:01:06.4]} 25... Kh7 {[%clk 0:02:03.7]} 26. Ng1 {[%clk 0:01:02.1]}
26... Rg8 {[%clk 0:02:03.7]} 27. Nh3 {[%clk 0:01:00.9]} 27... Rg7 {[%clk
0:01:56]} 28. Be2 {[%clk 0:01:00.6]} 28... Rag8 {[%clk 0:01:55.7]} 29. Rg1
{[%clk 0:00:59]} 29... c5 {[%clk 0:01:53]} 30. Bh5 {[%clk 0:00:57.5]} 30... Nd8
{[%clk 0:01:48.3]} 31. Rf2 {[%clk 0:00:51.5]} 31... Nc6 {[%clk 0:01:27.8]} 32.
Rxg7+ {[%clk 0:00:47.8]} 32... Rxg7 {[%clk 0:01:28.7]} 33. Nf4 {[%clk
0:00:48.3]} 33... Ne7 {[%clk 0:01:24.2]} 34. Rg2 {[%clk 0:00:35.6]} 34... Nc6
{[%clk 0:01:14.6]} 35. Bg6+ {[%clk 0:00:33.2]} 35... Kg8 {[%clk 0:01:14.1]} 36.
Nh5 {[%clk 0:00:33.3]} 36... Re7 {[%clk 0:01:11.7]} 37. Nf6+ {[%clk 0:00:32.1]}
37... Kf8 {[%clk 0:01:11.7]} 38. Bh5 {[%clk 0:00:26.1]} 38... Rg7 {[%clk
0:00:58.4]} 39. Rxg7 {[%clk 0:00:25.8]} 39... Kxg7 {[%clk 0:00:59.3]} 40. Nxd7
{[%clk 0:00:26.4]} 40... cxd4 {[%clk 0:00:59.8]} 41. exd4 {[%clk 0:00:26.4]}
41... Na5 {[%clk 0:00:59.7]} 42. b3 {[%clk 0:00:25.7]} 42... Nc6 {[%clk
0:01:00.1]} 43. Kg3 {[%clk 0:00:23.3]} 43... a5 {[%clk 0:00:59.9]} 44. Kf4
{[%clk 0:00:21.5]} 44... b5 {[%clk 0:01:00.3]} 45. Nc5 {[%clk 0:00:21]} 45...
Nd8 {[%clk 0:00:59.4]} 46. a3 {[%clk 0:00:18.5]} 46... Kf8 {[%clk 0:00:59.4]}
47. b4 {[%clk 0:00:15.1]} 47... a4 {[%clk 0:00:57.6]} 48. Bg6 {[%clk 0:00:13.4]}
48... Ke7 {[%clk 0:00:57.6]} 49. Bh7 {[%clk 0:00:12.1]} 49... Kf7 {[%clk
0:00:56.1]} 50. Bxf5 {[%clk 0:00:08.7]} 50... exf5 {[%clk 0:00:57]} 51. Kxf5
{[%clk 0:00:09.6]} 51... Ke7 {[%clk 0:00:55.1]} 52. Kg6 {[%clk 0:00:09]} 52...
Nf7 {[%clk 0:00:51.8]} 53. Kg7 {[%clk 0:00:04.3]} 53... Ke8 {[%clk 0:00:41.6]}
54. Nb7 {[%clk 0:00:04.4]} 54... Ke7 {[%clk 0:00:40.3]} 55. Nd6 {[%clk
0:00:04.6]} 55... Nd8 {[%clk 0:00:38.6]} 56. Kxh6 {[%clk 0:00:04.4]} 56... Ne6
{[%clk 0:00:34.5]} 57. Kg6 {[%clk 0:00:04.7]} 57... Nf4+ {[%clk 0:00:34]} 58.
Kg5 {[%clk 0:00:05.3]} 58... Ne2 {[%clk 0:00:32.1]} 59. Nxb5 {[%clk 0:00:05.3]}
59... Kd7 {[%clk 0:00:33]} 60. h5 {[%clk 0:00:05.6]} 60... Kc6 {[%clk
0:00:33.5]} 61. h6 {[%clk 0:00:06.2]} 61... Kxb5 {[%clk 0:00:33.6]} 62. h7
{[%clk 0:00:06.8]} 62... Nxc3 {[%clk 0:00:33.4]} 63. h8=Q {[%clk 0:00:07.7]}
63... Kc4 {[%clk 0:00:33.8]} 64. e6 {[%clk 0:00:08]} 64... Ne4+ {[%clk
0:00:34.1]} 65. Kf4 {[%clk 0:00:07.2]} 65... Nd6 {[%clk 0:00:32.4]} 66. Qe5
{[%clk 0:00:05.2]} 66... Ne8 {[%clk 0:00:29]} 67. e7 {[%clk 0:00:05.6]} 67...
Kb3 {[%clk 0:00:29.5]} 68. Qb8 {[%clk 0:00:05.4]} 68... Nf6 {[%clk 0:00:29.2]}
69. e8=Q {[%clk 0:00:05.6]} 69... Nxe8 {[%clk 0:00:29.8]} 70. Qxe8 {[%clk
0:00:06.4]} 70... Kxa3 {[%clk 0:00:30.7]} 71. b5 {[%clk 0:00:06.8]} 71... Ka2
{[%clk 0:00:31.3]} 72. b6 {[%clk 0:00:07.7]} 72... Ka1 {[%clk 0:00:31.7]} 73.
Qxa4+ {[%clk 0:00:06.8]} 73... Kb2 {[%clk 0:00:31.9]} 74. b7 {[%clk 0:00:07.4]}
74... Kc3 {[%clk 0:00:32.8]} 75. b8=Q {[%clk 0:00:07.1]} 75... Kd2 {[%clk
0:00:33.7]} 76. Qb2+ {[%clk 0:00:06.9]} 76... Kd3 {[%clk 0:00:34.6]} 77. Qd1+
{[%clk 0:00:06.9]} 77... Kc4 {[%clk 0:00:35.5]} 78. Qdc2# {[%clk 0:00:05.4]} 1-0

[Event "*** SCC Grand Prix: Titled Tuesday Blitz"]
[Site "Chess.com"]
[Date "2020.10.13"]
[Round "6"]
[White "IwkooO"]
[Black "BigAl"]
[Result "1/2-1/2"]
[WhiteElo "2648"]
[BlackElo "2514"]
[TimeControl "180+1"]
[EndTime "11:08:41 PDT"]
[Termination "Game drawn by repetition"]

1. e4 {[%clk 0:03:00.9]} 1... c6 {[%clk 0:02:39.6]} 2. d4 {[%clk 0:03:00.4]}
2... d5 {[%clk 0:02:40.1]} 3. e5 {[%clk 0:03:01.1]} 3... Bf5 {[%clk 0:02:39.8]}
4. Nd2 {[%clk 0:03:01.8]} 4... e6 {[%clk 0:02:38.9]} 5. Nb3 {[%clk 0:03:02.4]}
5... Nd7 {[%clk 0:02:31.6]} 6. Nf3 {[%clk 0:02:58.4]} 6... Ne7 {[%clk
0:02:28.8]} 7. Be2 {[%clk 0:02:58]} 7... Ng6 {[%clk 0:02:29]} 8. O-O {[%clk
0:02:55]} 8... f6 {[%clk 0:02:29.3]} 9. exf6 {[%clk 0:02:50.8]} 9... Qxf6 {[%clk
0:02:27.7]} 10. Bg5 {[%clk 0:02:44.8]} 10... Qf7 {[%clk 0:02:27.4]} 11. c4
{[%clk 0:02:45.4]} 11... Bd6 {[%clk 0:02:26.4]} 12. Bd3 {[%clk 0:02:40.3]} 12...
O-O {[%clk 0:02:22.9]} 13. Bxf5 {[%clk 0:02:29.3]} 13... Qxf5 {[%clk 0:02:22.2]}
14. Rc1 {[%clk 0:02:21.6]} 14... Rae8 {[%clk 0:02:08.5]} 15. Be3 {[%clk
0:02:17.9]} 15... Qh5 {[%clk 0:02:01.1]} 16. h3 {[%clk 0:02:13.5]} 16... h6
{[%clk 0:01:46.7]} 17. Nfd2 {[%clk 0:02:07]} 17... Qh4 {[%clk 0:01:41.3]} 18.
Nf3 {[%clk 0:02:02.1]} 18... Qh5 {[%clk 0:01:40.5]} 19. Na5 {[%clk 0:01:56.4]}
19... Rb8 {[%clk 0:01:29.5]} 20. Nd2 {[%clk 0:01:51.7]} 20... Qh4 {[%clk
0:01:26.8]} 21. Qg4 {[%clk 0:01:50.9]} 21... Qxg4 {[%clk 0:01:12.5]} 22. hxg4
{[%clk 0:01:50.5]} 22... Nf4 {[%clk 0:01:12.3]} 23. Rc2 {[%clk 0:01:37.4]} 23...
Ne2+ {[%clk 0:01:08.5]} 24. Kh1 {[%clk 0:01:37.1]} 24... Nf4 {[%clk 0:00:51.7]}
25. g3 {[%clk 0:01:34.6]} 25... Ng6 {[%clk 0:00:45.8]} 26. Kg2 {[%clk
0:01:31.5]} 26... Rf7 {[%clk 0:00:46.2]} 27. f4 {[%clk 0:01:18.7]} 27... Bb4
{[%clk 0:00:46.4]} 28. Nab3 {[%clk 0:01:18.1]} 28... Bxd2 {[%clk 0:00:39.8]} 29.
Bxd2 {[%clk 0:01:13.1]} 29... Ne7 {[%clk 0:00:33.4]} 30. Bb4 {[%clk 0:01:11.2]}
30... dxc4 {[%clk 0:00:30.5]} 31. Rxc4 {[%clk 0:01:05.8]} 31... Nd5 {[%clk
0:00:30.7]} 32. Bd2 {[%clk 0:01:06.2]} 32... Rbf8 {[%clk 0:00:26.6]} 33. Re1
{[%clk 0:00:58.1]} 33... g5 {[%clk 0:00:22.2]} 34. Rxe6 {[%clk 0:00:55.5]} 34...
gxf4 {[%clk 0:00:22.4]} 35. Rxh6 {[%clk 0:00:42.6]} 35... fxg3 {[%clk
0:00:22.5]} 36. Rg6+ {[%clk 0:00:42.4]} 36... Kh7 {[%clk 0:00:22.9]} 37. Rh6+
{[%clk 0:00:42.9]} 37... Kg7 {[%clk 0:00:23.6]} 38. g5 {[%clk 0:00:29.7]} 38...
Rf2+ {[%clk 0:00:18.7]} 39. Kxg3 {[%clk 0:00:29.1]} 39... R8f3+ {[%clk
0:00:18.7]} 40. Kg4 {[%clk 0:00:29.8]} 40... Rd3 {[%clk 0:00:11.9]} 41. Rc2
{[%clk 0:00:15.5]} 41... Ne3+ {[%clk 0:00:06.6]} 42. Bxe3 {[%clk 0:00:15.9]}
42... Rxc2 {[%clk 0:00:06.9]} 43. Rh3 {[%clk 0:00:11.2]} 43... Nb6 {[%clk
0:00:02.3]} 44. Bf4 {[%clk 0:00:09.8]} 44... Rxh3 {[%clk 0:00:01.7]} 45. Kxh3
{[%clk 0:00:07.9]} 45... Rxb2 {[%clk 0:00:02.6]} 46. Nc5 {[%clk 0:00:07.9]}
46... Nd5 {[%clk 0:00:02.5]} 47. Be5+ {[%clk 0:00:08.4]} 47... Kg6 {[%clk
0:00:01.7]} 48. Ne6 {[%clk 0:00:08.1]} 48... Kf5 {[%clk 0:00:01.4]} 49. Nc5
{[%clk 0:00:02.9]} 49... Kxg5 {[%clk 0:00:01.8]} 50. Ne4+ {[%clk 0:00:03.1]}
50... Kf5 {[%clk 0:00:02.2]} 51. Nd6+ {[%clk 0:00:03.6]} 51... Ke6 {[%clk
0:00:02.8]} 52. Nc4 {[%clk 0:00:03.9]} 52... Rxa2 {[%clk 0:00:03.4]} 53. Kg4
{[%clk 0:00:04.1]} 53... b5 {[%clk 0:00:03.7]} 54. Nd6 {[%clk 0:00:04.5]} 54...
Rg2+ {[%clk 0:00:04.2]} 55. Kf3 {[%clk 0:00:04.5]} 55... Rg1 {[%clk 0:00:04.9]}
56. Ne4 {[%clk 0:00:05.1]} 56... Rf1+ {[%clk 0:00:04.8]} 57. Ke2 {[%clk
0:00:05.3]} 57... Rf8 {[%clk 0:00:05.7]} 58. Nc5+ {[%clk 0:00:05.7]} 58... Kf5
{[%clk 0:00:06.2]} 59. Nb7 {[%clk 0:00:05.7]} 59... Re8 {[%clk 0:00:06.5]} 60.
Nd6+ {[%clk 0:00:06.1]} 60... Ke6 {[%clk 0:00:06.3]} 61. Nxe8 {[%clk 0:00:07]}
61... c5 {[%clk 0:00:06.3]} 62. Ng7+ {[%clk 0:00:06.1]} 62... Kd7 {[%clk
0:00:05.5]} 63. dxc5 {[%clk 0:00:06.7]} 63... Kc6 {[%clk 0:00:06.2]} 64. Bd4
{[%clk 0:00:06.9]} 64... Nb4 {[%clk 0:00:05.6]} 65. Kd2 {[%clk 0:00:06.8]} 65...
Kd5 {[%clk 0:00:05.9]} 66. Be3 {[%clk 0:00:05.2]} 66... Na6 {[%clk 0:00:06.1]}
67. Nf5 {[%clk 0:00:04.4]} 67... Nxc5 {[%clk 0:00:06.4]} 68. Ne7+ {[%clk
0:00:05]} 68... Kc4 {[%clk 0:00:06.9]} 69. Nc8 {[%clk 0:00:05.1]} 69... a5
{[%clk 0:00:06.7]} 70. Nb6+ {[%clk 0:00:05]} 70... Kb4 {[%clk 0:00:07.2]} 71.
Nd5+ {[%clk 0:00:05.2]} 71... Kc4 {[%clk 0:00:07.9]} 72. Nb6+ {[%clk 0:00:05.7]}
72... Kb4 {[%clk 0:00:08.3]} 73. Nd5+ {[%clk 0:00:06.2]} 73... Kc4 {[%clk
0:00:08.7]} 74. Nb6+ {[%clk 0:00:06.8]} 1/2-1/2

[Event "*** SCC Grand Prix: Titled Tuesday Blitz"]
[Site "Chess.com"]
[Date "2020.10.13"]
[Round "6"]
[White "olksuna"]
[Black "Loy_Konstantin"]
[Result "1-0"]
[WhiteElo "2604"]
[BlackElo "2349"]
[TimeControl "180+1"]
[EndTime "11:08:44 PDT"]
[Termination "olksuna won on time"]

1. e4 {[%clk 0:03:00.9]} 1... c5 {[%clk 0:02:59.2]} 2. Nf3 {[%clk 0:03:01.1]}
2... d6 {[%clk 0:02:58.8]} 3. d4 {[%clk 0:03:00.8]} 3... cxd4 {[%clk 0:02:59.4]}
4. Nxd4 {[%clk 0:03:01.7]} 4... Nf6 {[%clk 0:02:59.6]} 5. Nc3 {[%clk 0:03:02.3]}
5... g6 {[%clk 0:02:59.6]} 6. Be2 {[%clk 0:02:58.9]} 6... Bg7 {[%clk 0:02:59.8]}
7. O-O {[%clk 0:02:59.8]} 7... O-O {[%clk 0:02:59.9]} 8. Re1 {[%clk 0:03:00.7]}
8... Nc6 {[%clk 0:03:00]} 9. Nb3 {[%clk 0:03:00.3]} 9... Be6 {[%clk 0:02:59.2]}
10. Bf1 {[%clk 0:02:58.2]} 10... Rc8 {[%clk 0:02:57.6]} 11. Nd5 {[%clk
0:02:54.3]} 11... Bxd5 {[%clk 0:02:55.3]} 12. exd5 {[%clk 0:02:53.4]} 12... Ne5
{[%clk 0:02:55.9]} 13. c3 {[%clk 0:02:46.3]} 13... Nc4 {[%clk 0:02:52.3]} 14.
Rb1 {[%clk 0:02:34.7]} 14... Nb6 {[%clk 0:02:29.7]} 15. a4 {[%clk 0:02:18.5]}
15... Nbxd5 {[%clk 0:02:22.8]} 16. a5 {[%clk 0:02:18.4]} 16... Nc7 {[%clk
0:02:15]} 17. Bg5 {[%clk 0:02:15.3]} 17... Ne6 {[%clk 0:02:11]} 18. Bh4 {[%clk
0:02:12.6]} 18... a6 {[%clk 0:01:51.5]} 19. Qf3 {[%clk 0:02:03.1]} 19... Qc7
{[%clk 0:01:47]} 20. Rbd1 {[%clk 0:02:01.7]} 20... Rfe8 {[%clk 0:01:43.1]} 21.
h3 {[%clk 0:01:49.3]} 21... Qc6 {[%clk 0:01:39.4]} 22. Qxc6 {[%clk 0:01:13.4]}
22... Rxc6 {[%clk 0:01:35.5]} 23. Be2 {[%clk 0:01:03.1]} 23... Rc7 {[%clk
0:01:28.5]} 24. Bf3 {[%clk 0:01:01.6]} 24... Kf8 {[%clk 0:01:25.7]} 25. Kf1
{[%clk 0:00:57.1]} 25... Nd7 {[%clk 0:00:54.7]} 26. Rd5 {[%clk 0:00:25]} 26...
Ndc5 {[%clk 0:00:45]} 27. Nxc5 {[%clk 0:00:25.1]} 27... Nxc5 {[%clk 0:00:38.3]}
28. Bg5 {[%clk 0:00:18.8]} 28... Nd7 {[%clk 0:00:37.1]} 29. Be3 {[%clk
0:00:17.2]} 29... Nf6 {[%clk 0:00:24.1]} 30. Rdd1 {[%clk 0:00:15.7]} 30... Nd7
{[%clk 0:00:23]} 31. Bb6 {[%clk 0:00:12.2]} 31... Nxb6 {[%clk 0:00:21.4]} 32.
axb6 {[%clk 0:00:13.1]} 32... Rd7 {[%clk 0:00:21.7]} 33. Rd3 {[%clk 0:00:11.7]}
33... Rc8 {[%clk 0:00:17.9]} 34. Red1 {[%clk 0:00:10.5]} 34... f5 {[%clk
0:00:17.8]} 35. Bd5 {[%clk 0:00:08.7]} 35... Ke8 {[%clk 0:00:16.7]} 36. Be6
{[%clk 0:00:07.4]} 36... Rc6 {[%clk 0:00:16]} 37. Bxd7+ {[%clk 0:00:07.8]} 37...
Kxd7 {[%clk 0:00:16.9]} 38. g4 {[%clk 0:00:08.4]} 38... Rxb6 {[%clk 0:00:16.3]}
39. R1d2 {[%clk 0:00:08.5]} 39... Rc6 {[%clk 0:00:14.2]} 40. gxf5 {[%clk
0:00:08.5]} 40... gxf5 {[%clk 0:00:14.2]} 41. Rg3 {[%clk 0:00:09.4]} 41... Bf6
{[%clk 0:00:11.9]} 42. Rg8 {[%clk 0:00:09.2]} 42... Rc4 {[%clk 0:00:09.2]} 43.
Kg2 {[%clk 0:00:08.2]} 43... h5 {[%clk 0:00:07.5]} 44. Rb8 {[%clk 0:00:07.6]}
44... Kc7 {[%clk 0:00:07.5]} 45. Rg8 {[%clk 0:00:07.6]} 45... h4 {[%clk
0:00:07.5]} 46. Rg6 {[%clk 0:00:05.3]} 46... a5 {[%clk 0:00:07.1]} 47. Rg8
{[%clk 0:00:05.4]} 47... a4 {[%clk 0:00:06]} 48. Ra8 {[%clk 0:00:05.6]} 48... b5
{[%clk 0:00:05]} 49. Kf3 {[%clk 0:00:05.6]} 49... Kc6 {[%clk 0:00:05.2]} 50. Re2
{[%clk 0:00:05.8]} 50... Kb7 {[%clk 0:00:05]} 51. Rg8 {[%clk 0:00:05.7]} 51...
b4 {[%clk 0:00:04.7]} 52. cxb4 {[%clk 0:00:05.6]} 52... Rxb4 {[%clk 0:00:05.6]}
53. Re8 {[%clk 0:00:04.8]} 53... Kc6 {[%clk 0:00:03.4]} 54. Kg2 {[%clk 0:00:04]}
54... Kd7 {[%clk 0:00:01.6]} 55. Ra8 {[%clk 0:00:03.1]} 55... Rxb2 {[%clk
0:00:02.2]} 56. Rxb2 {[%clk 0:00:02.6]} 56... Bxb2 {[%clk 0:00:03.1]} 57. Rxa4
{[%clk 0:00:02.9]} 57... Bf6 {[%clk 0:00:04]} 58. Rf4 {[%clk 0:00:03.3]} 58...
Ke6 {[%clk 0:00:04.9]} 59. Ra4 {[%clk 0:00:03.7]} 59... Ke5 {[%clk 0:00:05.3]}
60. Ra5+ {[%clk 0:00:04.1]} 60... d5 {[%clk 0:00:05.6]} 61. Ra7 {[%clk 0:00:05]}
61... e6 {[%clk 0:00:05.3]} 62. Ra2 {[%clk 0:00:05.9]} 62... d4 {[%clk
0:00:05.1]} 63. Kf3 {[%clk 0:00:06.8]} 63... Kd5 {[%clk 0:00:04.3]} 64. Ra5+
{[%clk 0:00:06.9]} 64... Kd6 {[%clk 0:00:03.5]} 65. Ke2 {[%clk 0:00:06.4]} 65...
e5 {[%clk 0:00:03.2]} 66. f4 {[%clk 0:00:06.7]} 66... exf4 {[%clk 0:00:02.2]}
67. Rxf5 {[%clk 0:00:06.1]} 67... Be5 {[%clk 0:00:02.4]} 68. Kd3 {[%clk
0:00:06.5]} 68... Ke6 {[%clk 0:00:01.2]} 69. Rh5 {[%clk 0:00:06.4]} 69... f3
{[%clk 0:00:01.6]} 70. Rxh4 {[%clk 0:00:05.6]} 70... Bg3 {[%clk 0:00:01.6]} 71.
Rh8 {[%clk 0:00:04.5]} 1-0

[Event "*** SCC Grand Prix: Titled Tuesday Blitz"]
[Site "Chess.com"]
[Date "2020.10.13"]
[Round "6"]
[White "youngKID"]
[Black "GregShahade"]
[Result "1-0"]
[WhiteElo "2820"]
[BlackElo "2641"]
[TimeControl "180+1"]
[EndTime "11:08:50 PDT"]
[Termination "youngKID won by checkmate"]

1. Nf3 {[%clk 0:03:00.9]} 1... Nf6 {[%clk 0:02:59.8]} 2. g3 {[%clk 0:03:00.2]}
2... g6 {[%clk 0:03:00.2]} 3. Bg2 {[%clk 0:03:00.4]} 3... Bg7 {[%clk 0:03:00.9]}
4. c4 {[%clk 0:03:00.7]} 4... d5 {[%clk 0:03:00.2]} 5. cxd5 {[%clk 0:03:00]}
5... Nxd5 {[%clk 0:03:01.1]} 6. O-O {[%clk 0:02:58.9]} 6... Nb6 {[%clk
0:02:56.7]} 7. Nc3 {[%clk 0:02:56.6]} 7... Nc6 {[%clk 0:02:56.6]} 8. b3 {[%clk
0:02:52.5]} 8... O-O {[%clk 0:02:56.3]} 9. Bb2 {[%clk 0:02:52.3]} 9... a5 {[%clk
0:02:55.3]} 10. Qc1 {[%clk 0:02:48.5]} 10... a4 {[%clk 0:02:50.4]} 11. Nxa4
{[%clk 0:02:48.1]} 11... Nxa4 {[%clk 0:02:50.5]} 12. Bxg7 {[%clk 0:02:48.1]}
12... Kxg7 {[%clk 0:02:49.5]} 13. bxa4 {[%clk 0:02:48.4]} 13... Rxa4 {[%clk
0:02:46.3]} 14. Qb2+ {[%clk 0:02:48.5]} 14... Kg8 {[%clk 0:02:43.6]} 15. Rfc1
{[%clk 0:02:46.3]} 15... Ra7 {[%clk 0:02:31.9]} 16. Rc5 {[%clk 0:02:06.5]} 16...
Qd6 {[%clk 0:02:10.4]} 17. Rac1 {[%clk 0:01:43.3]} 17... Be6 {[%clk 0:02:05]}
18. a3 {[%clk 0:01:43.4]} 18... Rfa8 {[%clk 0:02:03.6]} 19. Ng5 {[%clk
0:01:35.8]} 19... Nd4 {[%clk 0:01:25.3]} 20. Bf1 {[%clk 0:01:04.3]} 20... Nb3
{[%clk 0:01:08.1]} 21. Nxe6 {[%clk 0:00:53.1]} 21... Qxe6 {[%clk 0:01:09]} 22.
Bh3 {[%clk 0:00:53.2]} 22... Qxh3 {[%clk 0:00:32]} 23. Qxb3 {[%clk 0:00:53.2]}
23... c6 {[%clk 0:00:29.9]} 24. R5c3 {[%clk 0:00:48.9]} 24... Qd7 {[%clk
0:00:28.1]} 25. d3 {[%clk 0:00:46.1]} 25... Qd6 {[%clk 0:00:28.5]} 26. Ra1
{[%clk 0:00:41.9]} 26... e6 {[%clk 0:00:28.9]} 27. Qb2 {[%clk 0:00:41.1]} 27...
Qe7 {[%clk 0:00:28.7]} 28. Rb3 {[%clk 0:00:41.4]} 28... h5 {[%clk 0:00:28.5]}
29. Rb1 {[%clk 0:00:38.3]} 29... b5 {[%clk 0:00:28.6]} 30. Rc1 {[%clk
0:00:38.8]} 30... Qd6 {[%clk 0:00:26.7]} 31. Rbc3 {[%clk 0:00:38.3]} 31... Rxa3
{[%clk 0:00:26]} 32. Rxc6 {[%clk 0:00:37.3]} 32... Qd7 {[%clk 0:00:24.6]} 33.
Qxb5 {[%clk 0:00:36.8]} 33... Ra1 {[%clk 0:00:23.6]} 34. Qc4 {[%clk 0:00:31.6]}
34... Rxc1+ {[%clk 0:00:21.9]} 35. Qxc1 {[%clk 0:00:32.5]} 35... Qb7 {[%clk
0:00:18.8]} 36. h4 {[%clk 0:00:31.3]} 36... Rb8 {[%clk 0:00:11.1]} 37. Kh2
{[%clk 0:00:26.3]} 37... Rd8 {[%clk 0:00:10.5]} 38. Rc7 {[%clk 0:00:25.6]} 38...
Qd5 {[%clk 0:00:10.2]} 39. Qf4 {[%clk 0:00:25.5]} 39... Rd7 {[%clk 0:00:08.6]}
40. Rc4 {[%clk 0:00:20.2]} 40... Rd8 {[%clk 0:00:08]} 41. Qf6 {[%clk 0:00:20]}
41... Qd7 {[%clk 0:00:07.6]} 42. Qe5 {[%clk 0:00:17.3]} 42... Qd5 {[%clk
0:00:06.7]} 43. Qf4 {[%clk 0:00:15.5]} 43... e5 {[%clk 0:00:06.1]} 44. Qf6
{[%clk 0:00:15.2]} 44... Qd6 {[%clk 0:00:06.6]} 45. Qf3 {[%clk 0:00:13.6]} 45...
Qe6 {[%clk 0:00:06.8]} 46. Rc6 {[%clk 0:00:13.4]} 46... Rd6 {[%clk 0:00:06.8]}
47. Rc7 {[%clk 0:00:13.4]} 47... Qf6 {[%clk 0:00:07.2]} 48. Kg2 {[%clk
0:00:09.2]} 48... Kg7 {[%clk 0:00:07.3]} 49. Qxf6+ {[%clk 0:00:06.4]} 49... Rxf6
{[%clk 0:00:08.2]} 50. Re7 {[%clk 0:00:05.5]} 50... Rf5 {[%clk 0:00:08.4]} 51.
e4 {[%clk 0:00:05.6]} 51... Rf6 {[%clk 0:00:06]} 52. Rxe5 {[%clk 0:00:05.3]}
52... Rd6 {[%clk 0:00:06.9]} 53. Rd5 {[%clk 0:00:05.8]} 53... Rc6 {[%clk
0:00:06.4]} 54. Kf3 {[%clk 0:00:05.9]} 54... Kf6 {[%clk 0:00:07]} 55. Ke3 {[%clk
0:00:06.5]} 55... Ke6 {[%clk 0:00:07.8]} 56. Ra5 {[%clk 0:00:07.1]} 56... Rc1
{[%clk 0:00:08.4]} 57. Ra6+ {[%clk 0:00:07.2]} 57... Ke7 {[%clk 0:00:08.9]} 58.
d4 {[%clk 0:00:07.7]} 58... Rc3+ {[%clk 0:00:08.7]} 59. Kf4 {[%clk 0:00:08.3]}
59... Rc2 {[%clk 0:00:09.4]} 60. f3 {[%clk 0:00:08.4]} 60... Rb2 {[%clk
0:00:09.2]} 61. d5 {[%clk 0:00:08.5]} 61... Rd2 {[%clk 0:00:08.9]} 62. Ra7+
{[%clk 0:00:08.7]} 62... Kf6 {[%clk 0:00:08.7]} 63. e5+ {[%clk 0:00:07.4]} 63...
Kg7 {[%clk 0:00:09.3]} 64. d6 {[%clk 0:00:07.6]} 64... Rd5 {[%clk 0:00:08.7]}
65. Ke4 {[%clk 0:00:07.8]} 65... Rd1 {[%clk 0:00:08.9]} 66. Ra3 {[%clk
0:00:08.2]} 66... Re1+ {[%clk 0:00:08.5]} 67. Kd5 {[%clk 0:00:08]} 67... Rd1+
{[%clk 0:00:08.9]} 68. Ke4 {[%clk 0:00:08.3]} 68... g5 {[%clk 0:00:09.8]} 69.
hxg5 {[%clk 0:00:07.7]} 69... Kg6 {[%clk 0:00:10.3]} 70. Rd3 {[%clk 0:00:07.7]}
70... Re1+ {[%clk 0:00:10]} 71. Kf4 {[%clk 0:00:08]} 71... h4 {[%clk 0:00:09.1]}
72. gxh4 {[%clk 0:00:07.8]} 72... Rh1 {[%clk 0:00:08.8]} 73. d7 {[%clk
0:00:07.8]} 73... Rxh4+ {[%clk 0:00:09.1]} 74. Ke3 {[%clk 0:00:08.7]} 74... Rh7
{[%clk 0:00:07.6]} 75. d8=Q {[%clk 0:00:09.6]} 75... Kf5 {[%clk 0:00:08.3]} 76.
Qf6# {[%clk 0:00:10.1]} 1-0